{"text_format":"3","workbook":"xlsx","n_sheets":1,"sheets":["招标清单"],"not_rendered":{"images":11},"read":"whole","date_system":"1900"}

{"sheet":"招标清单","index":0,"n_rows":25,"n_cols":8,"rows_kept":25,"merged":[[0,0,0,7],[1,0,2,0],[1,1,2,1],[1,2,1,6],[4,0,4,1],[5,0,5,1],[6,0,6,1],[7,0,7,1],[8,0,8,1],[10,0,10,1],[11,0,11,1],[12,0,12,1],[13,0,13,1],[14,0,14,1],[16,0,16,1],[17,0,17,1],[18,0,18,1],[19,0,19,1],[20,0,20,1],[21,0,21,1],[23,0,23,1],[23,2,23,7],[24,0,24,7]]}
["广州工控大湾区现代高端装备研发生产基地项目（三期）宿舍家具采购项目招标清单"]
["宿舍类型","房间数量","配置类型及数量",{"$nulls":4},"其他家具-椅子"]
[null,null,"床","床垫","衣柜","桌子","床头柜","数量：24张"]
["单人间",{"$f":"32*1","v":32},32,32,32,32,32,"/"]
["规格参数",null,"1.基材：榉木床架（床板横梁可选用松木）;2.含水率：≤ 8.0%;3.五金配件：采用优质五金配件，间隙细小均匀无毛刺，三合一连接件符合GB/T 10125-2021等国家标准。五金品牌为：海蒂斯、百隆、海福乐三者其一；4.床板横梁采用UV光固化底漆+双组份环保水性面漆，其它板件采用油漆闭木眼工艺：喷封闭漆—打磨—喷PE底漆—打磨—喷面漆（双组份环保水性面漆），油漆采用环保水性漆（提供对应的油漆检测报告，PU透明底漆检测报告（判定依据GB 18581-2020《木器涂料中有害物质限量》(溶剂型涂料聚氨酯类底漆)、GB/T 23997-2009《室内装饰装修用溶剂型聚氨酯木器涂料》(通用底漆)），水性双组份清面漆检测报告（判定依据 GB 18581-2020《木器涂料中有害物质限量》(水性涂料 清漆)GB/T 23999-2009《室内装饰装修用水性木器涂料》(B类)），水性透明底漆检测报告（判定依据GB 18581-2020《木器涂料中有害物质限量》(水性涂料 清漆)GB/T 23999-2009《室内装饰装修用水性木器涂料》(D类)）；5.床靠背板材厚度50/30/20mm,床板板材厚度15mm,床竖梁板材厚度30mm,床靠侧板（左右）板材厚度30mm,床褥后板板材厚度30mm,床脚板材厚度50mm；","1.基材：高档针织面料+隔音棉+高密度弹力海绵+3D环保椰棕。\n","1.基材:柜体采用多层实木夹板+柜门采用欧松板（所有板材贴榉木色三聚氰胺膜纸，使用PUR封边），符合GB/T 15102-2017《浸渍胶膜纸饰面纤维板和刨花板》优等品要求，表面耐磨≥ 600转，吸水厚度膨胀率≤ 8.0%， 握螺钉力≥ 1550 N（板面），1050N（板边），甲醛释放量必须达到 GB 39600-2021《人造板及其制品甲醛释放量分级》 ENF级（≤0.025 mg/m³）标准。\n2.五金配件：采用优质五金配件，间隙细小均匀无毛刺，三合一连接件符合GB/T 10125-2021等国家标准。五金品牌为：海蒂斯、百隆、海福乐三者其一。\n","1.基材:采用多层实木夹板（所有板材贴榉木色三聚氰胺膜纸，使用PUR封边），符合GB/T 15102-2017《浸渍胶膜纸饰面纤维板和刨花板》优等品要求，表面耐磨≥ 600转，吸水厚度膨胀率≤ 8.0%， 握螺钉力≥ 1550 N（板面），1050N（板边），甲醛释放量必须达到 GB 39600-2021《人造板及其制品甲醛释放量分级》 ENF级（≤0.025 mg/m³）标准。\n2.五金配件：采用优质五金配件，间隙细小均匀无毛刺，三合一连接件符合GB/T 10125-2021等国家标准。五金品牌为：海蒂斯、百隆、海福乐三者其一。\n3.可与衣柜一体制作","1.基材:采用多层实木夹板（所有板材贴榉木色三聚氰胺膜纸，使用PUR封边），符合GB/T 15102-2017《浸渍胶膜纸饰面纤维板和刨花板》优等品要求，表面耐磨≥ 600转，吸水厚度膨胀率≤ 8.0%， 握螺钉力≥ 1550 N（板面），1050N（板边），甲醛释放量必须达到 GB 39600-2021《人造板及其制品甲醛释放量分级》 ENF级（≤0.025 mg/m³）标准。\n2.五金配件：采用优质五金配件，间隙细小均匀无毛刺，三合一连接件符合GB/T 10125-2021等国家标准。五金品牌为：海蒂斯、百隆、海福乐三者其一。","1.材质：实木基材+实木贴皮\n2.油漆闭木眼工艺：喷封闭漆—打磨—喷PE底漆—打磨—喷面漆（双组份环保水性面漆），油漆采用环保水性漆（提供对应的油漆检测报告）\n"]
["尺寸（宽*深*高，单位mm）",null,"1600*2090*900","1500*2000*80","（双门）：1000*600*2100","1200*600*755","500*500*500","530*512*950"]
["示意图"]
["含税单价（元）"]
["含税小计（元）",null,{"$f":"C4*C8","v":0},0,0,0,0]
["双人间",{"$f":"32*3","v":96},{"$f":"B10*2","v":192},{"$f":"C10","v":192},{"$f":"B10*2","v":192},{"$f":"B10*2","v":192},192,"/"]
["规格参数",null,"1.基材：榉木床架（床板横梁可选用松木）;2.含水率：≤ 8.0%;3.五金配件：采用优质五金配件，间隙细小均匀无毛刺，三合一连接件符合GB/T 10125-2021等国家标准。五金品牌为：海蒂斯、百隆、海福乐三者其一；4.床板横梁采用UV光固化底漆+双组份环保水性面漆，其它板件采用油漆闭木眼工艺：喷封闭漆—打磨—喷PE底漆—打磨—喷面漆（双组份环保水性面漆），油漆采用环保水性漆（提供对应的油漆检测报告，PU透明底漆检测报告（判定依据GB 18581-2020《木器涂料中有害物质限量》(溶剂型涂料聚氨酯类底漆)、GB/T 23997-2009《室内装饰装修用溶剂型聚氨酯木器涂料》(通用底漆)），水性双组份清面漆检测报告（判定依据 GB 18581-2020《木器涂料中有害物质限量》(水性涂料 清漆)GB/T 23999-2009《室内装饰装修用水性木器涂料》(B类)），水性透明底漆检测报告（判定依据GB 18581-2020《木器涂料中有害物质限量》(水性涂料 清漆)GB/T 23999-2009《室内装饰装修用水性木器涂料》(D类)）；5.床靠背板材厚度50/30/20mm,床板板材厚度15mm,床竖梁板材厚度30mm,床靠侧板（左右）板材厚度30mm,床褥后板板材厚度30mm,床脚板材厚度50mm；","1.基材：高档针织面料+隔音棉+高密度弹力海绵+3D环保椰棕。\n","1.基材:柜体采用多层实木夹板+柜门采用欧松板（所有板材贴榉木色三聚氰胺膜纸，使用PUR封边），符合GB/T 15102-2017《浸渍胶膜纸饰面纤维板和刨花板》优等品要求，表面耐磨≥ 600转，吸水厚度膨胀率≤ 8.0%， 握螺钉力≥ 1550 N（板面），1050N（板边），甲醛释放量必须达到 GB 39600-2021《人造板及其制品甲醛释放量分级》 ENF级（≤0.025 mg/m³）标准。\n2.五金配件：采用优质五金配件，间隙细小均匀无毛刺，三合一连接件符合GB/T 10125-2021等国家标准。五金品牌为：海蒂斯、百隆、海福乐三者其一。\n","1.基材:采用多层实木夹板（所有板材贴榉木色三聚氰胺膜纸，使用PUR封边），符合GB/T 15102-2017《浸渍胶膜纸饰面纤维板和刨花板》优等品要求，表面耐磨≥ 600转，吸水厚度膨胀率≤ 8.0%， 握螺钉力≥ 1550 N（板面），1050N（板边），甲醛释放量必须达到 GB 39600-2021《人造板及其制品甲醛释放量分级》 ENF级（≤0.025 mg/m³）标准。\n2.五金配件：采用优质五金配件，间隙细小均匀无毛刺，三合一连接件符合GB/T 10125-2021等国家标准。五金品牌为：海蒂斯、百隆、海福乐三者其一。\n3.可与衣柜一体制作","1.基材:采用多层实木夹板（所有板材贴榉木色三聚氰胺膜纸，使用PUR封边），符合GB/T 15102-2017《浸渍胶膜纸饰面纤维板和刨花板》优等品要求，表面耐磨≥ 600转，吸水厚度膨胀率≤ 8.0%， 握螺钉力≥ 1550 N（板面），1050N（板边），甲醛释放量必须达到 GB 39600-2021《人造板及其制品甲醛释放量分级》 ENF级（≤0.025 mg/m³）标准。\n2.五金配件：采用优质五金配件，间隙细小均匀无毛刺，三合一连接件符合GB/T 10125-2021等国家标准。五金品牌为：海蒂斯、百隆、海福乐三者其一。","/"]
["尺寸（宽*深*高，单位mm）",null,"1300*2090*900","1200*2000*80","（双门）：1000*600*2100","1200*600*755","500*500*500","/"]
["示意图",{"$nulls":6},"/"]
["含税单价（元）",{"$nulls":6},"/"]
["含税小计（元）",null,{"$f":"C10*C14","v":0},{"$f":"D10*D14","v":0},{"$f":"E10*E14","v":0},{"$f":"F10*F14","v":0},{"$f":"G14*G10","v":0},"/"]
["四人间",244,{"$f":"B16*4","v":976},{"$f":"C16","v":976},{"$f":"B16*2","v":488},{"$f":"B16*1","v":244},0,"/"]
["规格参数",null,"1.基材：榉木床架（床板横梁可选用松木）;2.含水率：≤ 8.0%;3.五金配件：采用优质五金配件，间隙细小均匀无毛刺，三合一连接件符合GB/T 10125-2021等国家标准。五金品牌为：海蒂斯、百隆、海福乐三者其一；4.床板横梁采用UV光固化底漆+双组份环保水性面漆，其它板件采用油漆闭木眼工艺：喷封闭漆—打磨—喷PE底漆—打磨—喷面漆（双组份环保水性面漆），油漆采用环保水性漆（提供对应的油漆检测报告，PU透明底漆检测报告（判定依据GB 18581-2020《木器涂料中有害物质限量》(溶剂型涂料聚氨酯类底漆)、GB/T 23997-2009《室内装饰装修用溶剂型聚氨酯木器涂料》(通用底漆)），水性双组份清面漆检测报告（判定依据 GB 18581-2020《木器涂料中有害物质限量》(水性涂料 清漆)GB/T 23999-2009《室内装饰装修用水性木器涂料》(B类)），水性透明底漆检测报告（判定依据GB 18581-2020《木器涂料中有害物质限量》(水性涂料 清漆)GB/T 23999-2009《室内装饰装修用水性木器涂料》(D类)）；5.床靠背板材厚度50/30/20mm,床板板材厚度15mm,床竖梁板材厚度30mm,床靠侧板（左右）板材厚度30mm,床褥后板板材厚度30mm,床脚板材厚度50mm；","1.基材：高档针织面料+隔音棉+高密度弹力海绵+3D环保椰棕。\n","1.基材:柜体采用多层实木夹板+柜门采用欧松板（所有板材贴榉木色三聚氰胺膜纸，使用PUR封边），符合GB/T 15102-2017《浸渍胶膜纸饰面纤维板和刨花板》优等品要求，表面耐磨≥ 600转，吸水厚度膨胀率≤ 8.0%， 握螺钉力≥ 1550 N（板面），1050N（板边），甲醛释放量必须达到 GB 39600-2021《人造板及其制品甲醛释放量分级》 ENF级（≤0.025 mg/m³）标准。\n2.五金配件：采用优质五金配件，间隙细小均匀无毛刺，三合一连接件符合GB/T 10125-2021等国家标准。五金品牌为：海蒂斯、百隆、海福乐三者其一。","1.基材:采用多层实木夹板（所有板材贴榉木色三聚氰胺膜纸，使用PUR封边），符合GB/T 15102-2017《浸渍胶膜纸饰面纤维板和刨花板》优等品要求，表面耐磨≥ 600转，吸水厚度膨胀率≤ 8.0%， 握螺钉力≥ 1550 N（板面），1050N（板边），甲醛释放量必须达到 GB 39600-2021《人造板及其制品甲醛释放量分级》 ENF级（≤0.025 mg/m³）标准。\n2.五金配件：采用优质五金配件，间隙细小均匀无毛刺，三合一连接件符合GB/T 10125-2021等国家标准，五金品牌为：海蒂斯、百隆、海福乐三者其一。。\n3.架子尺寸：宽1100*深600*高740，方通40*40，黑色哑光，钢材厚度1.5厚， 长桌架子的规格。","/","/"]
["尺寸（宽*深*高，单位mm）",null,"1300*2090*900","1200*2000*80","（四门）：1000*600*2100","1500*600*760","/","/"]
["示意图",{"$nulls":5},"/","/"]
["含税单价（元）",{"$nulls":5},"/","/"]
["含税小计（元）",null,{"$f":"C16*C20","v":0},0,0,0,0,"/"]
["家具合计数量（张）",null,{"$f":"C4+C10+C16","v":1200},1200,712,468,224,24]
["合计",{"$f":"B16+B10+B4","v":372},{"$f":"C9+C15+C21","v":0},0,0,0,0,{"$f":"H9","v":0}]
["含税总计（元）"]
["注：1.以上总计金额包含宿舍家具购置费、运输费、安装费及税费等所有相关费用；2.安装环境为2栋8层（每层32间）宿舍楼部分楼层（以招标人意见为准）。"]